Cogmind - Beta 14 @@@ ROGUE MODE // 2024.08.08 @ 13:48:47 Player: Heclapar Result: Destroyed by B-86 Titan with Matter Neutralizer Performance ------------- Evolutions (6) 3000 Regions Visited (14) 2800 Robots Destroyed (187) 935 Value Destroyed (7004) 7004 Prototype IDs (47) 940 Alien Tech Used (2) 400 Bonus (734) 734 TOTAL SCORE: 15813 Bonus ------- High Alert Combat Kills 77 Follower Combat Kills 137 Registered with UFD 300 Met Zhirov 300 Friendly Fire -80 Cogmind --------- Core Integrity 0/1150 Matter 78/300 Energy 90/100 System Corruption 5% Temperature Cool (11) Movement Hovering (60) Location -4/Factory Parts ------- > --- POWER (2) -------- (None) > --- PROPULSION (4) --- Improved Antigrav System > --- UTILITY (10) ----- Surveybot 17 Chip Advanced Salvage Targeting Computer Advanced Target Analyzer > --- WEAPON (3) ------- (None) > --- INVENTORY (5) ---- Armored Medium Treads Advanced Coolant Injector High-capacity Storage Unit Improved Signal Interpreter Experimental Power Shielding Peak State ------------ > --- POWER ------------ Neutrino Core Fusion Reactor > --- PROPULSION ------- Carbon-fiber Leg Myomer Leg Myomer Leg Myomer Leg > --- UTILITY ---------- Cooling System High-capacity Storage Unit Improved Terrain Scanner Surveybot 17 Chip Advanced Targeting Computer Advanced Target Analyzer Improved Kinecellerator Transmission Jammer Force Field Hacking Suite > --- WEAPON ----------- Gauss Rifle KE Penetrator Overtuned Coil Gun > --- INVENTORY -------- Fission Core Neutrino Core Armored Medium Treads Advanced Coolant Injector High-capacity Storage Unit Energy Well Improved Signal Interpreter Reaction Control System Experimental Power Shielding Transdimensional Reconstructor Tesla Rifle Wave Gun Advanced Plasma Cannon Heavy Phase Cannon Hypervelocity Gauss Rifle Gauss Cannon Precision Rocket Launcher Improved Plasma Cutter [Rating: 104] Favorites ----------- Power Improved Ion Engine Engine Improved Ion Engine Power Core Fission Core Reactor Fusion Reactor Propulsion Armored Treads Treads Armored Treads Leg Aluminum Leg Hover Unit Improved Antigrav System Utility High-capacity Storage Unit Device Cooling System Storage High-capacity Storage Unit Processor Surveybot 17 Chip Hackware Hacking Suite Protection Improved Medium Armor Plating Weapon Enhanced Autogun Energy Gun Force Rifle Energy Cannon Advanced Plasma Cannon Ballistic Gun Enhanced Autogun Ballistic Cannon Gauss Cannon Launcher Precision Rocket Launcher Special Weapon Improved Plasma Cutter Build | -11 -10 -10 -10 -8 -8 -8 -8 -6 -5 -5 -5 -5 -4 -4 ------- Run | Yrd Mat Min Sub Mat Sto Rec Scr Fac Fac Upp Upp Zhi Pro Fac Slots Evolved 12 | . . . . 4 . . . 4 2 . . . . 2 Power 1 | . . . . . . . . 1 . . . . . . Propulsion 2 | . . . . 1 . . . . 1 . . . . . Utility 8 | . . . . 2 . . . 3 1 . . . . 2 Weapon 1 | . . . . 1 . . . . . . . . . . Parts Attached 165 | . 2 5 6 36 9 1 4 14 20 3 7 7 16 35 Power 13 | . . 1 . 1 2 . 1 4 1 . . 1 . 2 Engine 5 | . . 1 . 1 1 . 1 1 . . . . . . Core 7 | . . . . . 1 . . 3 1 . . . . 2 Reactor 1 | . . . . . . . . . . . . 1 . . Propulsion 29 | . . . 2 12 1 . . . 4 . 1 . 3 6 Treads 19 | . . . 1 12 1 . . . 4 . . . 1 . Leg 9 | . . . 1 . . . . . . . 1 . 2 5 Wheel . | . . . . . . . . . . . . . . . Hover 1 | . . . . . . . . . . . . . . 1 Flight . | . . . . . . . . . . . . . . . Utility 50 | . 2 2 1 6 . 1 3 5 8 3 . 6 5 8 Device 26 | . 1 . . 4 . . 1 3 4 3 . 2 4 4 Storage 3 | . 1 . . . . . 1 . . . . . . 1 Processor 5 | . . . . . . . . . 1 . . 1 . 3 Hackware 1 | . . . . . . . . 1 . . . . . . Protection 15 | . . 2 1 2 . 1 1 1 3 . . 3 1 . Artifact . | . . . . . . . . . . . . . . . Weapon 73 | . . 2 3 17 6 . . 5 7 . 6 . 8 19 Energy Gun 15 | . . 1 1 4 2 . . 1 . . 2 . . 4 Energy Cannon 5 | . . . . . . . . 1 1 . . . 1 2 Ballistic Gun 37 | . . 1 2 11 4 . . 2 5 . 1 . 5 6 Ballistic Cannon 2 | . . . . . . . . 1 . . . . . 1 Launcher 11 | . . . . 2 . . . . 1 . 1 . 2 5 Special Weapon 3 | . . . . . . . . . . . 2 . . 1 Impact Weapon . | . . . . . . . . . . . . . . . Slashing Weapon . | . . . . . . . . . . . . . . . Piercing Weapon . | . . . . . . . . . . . . . . . Special Melee Weapon . | . . . . . . . . . . . . . . . Unidentified Prototypes 16 | . . 1 . 5 3 . . 1 1 . 1 3 . 1 Corrupted Parts 1 | . . . . . . . . . . . . . . 1 System Corruption 3 | . . . . . . . . . . . . . . 3 Parts Lost 50 | . . 1 4 2 1 . . . 7 1 . . 4 30 Power 5 | . . . . . . . . . 1 . . . . 4 Propulsion 16 | . . . 2 1 . . . . 3 1 . . 3 6 Utility 14 | . . 1 . 1 1 . . . 2 . . . 1 8 Weapon 15 | . . . 2 . . . . . 1 . . . . 12 Highest Loss Streak 27 | . . 1 1 1 1 . . . 4 1 . . 3 27 To Critical Strikes 1 | . . . . . . . . . . 1 . . . . Average Slot Usage (%) 93 | . 99 99 99 98 97 95 100 91 88 82 84 76 92 72 Engine 6 | . 14 14 14 9 3 . 8 5 . . . . . . Core 3 | . . . . . 5 9 . 6 10 11 11 9 5 3 Treads 17 | . . . 2 26 27 27 27 20 19 17 17 17 15 . Leg 5 | . 28 28 24 . . . . . . . 1 5 2 14 Device 11 | . 13 2 . 15 15 9 9 18 15 11 11 10 13 15 Storage 8 | . 14 14 14 9 9 9 9 6 5 5 5 5 5 4 Processor 2 | . . . . . . . . . 5 5 5 10 11 14 Hackware 2 | . . . . . . . . 5 5 5 5 5 5 3 Protection 10 | . . 11 14 11 9 13 17 6 4 5 5 4 4 . Energy Gun 3 | . 14 14 5 6 . . . 2 5 5 8 . . 1 Ballistic Gun 17 | . 14 14 22 20 26 27 27 17 8 11 6 . 10 7 Peak Build Rating 104 | . 7 10 18 37 37 36 40 67 79 79 83 80 86 104 Average Rating 46 | . 6 9 14 33 35 34 37 60 74 77 78 63 82 76 On Entrance 42 | 6 6 7 10 15 37 33 36 40 67 79 77 80 64 85 Naked Turns . | . . . . . . . . . . . . . . . Heaviest Build 109 | 11 27 36 38 53 48 48 70 91 100 105 102 99 109 96 Greatest Support 93 | 20 20 20 25 60 62 62 62 62 84 84 66 66 93 90 Greatest Overweight (x) 23 | . 1 1 2 1 . . 1 1 2 1 1 1 3 23 Average Overweight (x) . | . . 1 1 . . . . 1 1 1 1 1 1 . Largest Inventory Capacity 20 | . 15 15 15 15 15 15 20 20 20 20 20 20 20 20 Average Capacity 17 | . 12 15 15 15 15 15 18 20 20 20 20 20 20 16 Most Carried 20 | . 7 10 14 15 15 15 20 20 20 19 20 20 20 19 Average Carried 16 | . 6 8 12 14 14 14 17 18 19 19 19 19 18 13 Final Capacity 20 | 8 15 15 15 15 15 15 20 20 20 20 20 20 20 5 Final Carried 20 | 6 7 9 14 15 15 14 20 20 19 19 19 20 19 5 Class Distribution -------------------- 43% | Tank 13% | Gunner 13% | Mutant 12% | Skirmisher 9% | Scavenger-Mutant 4% | Scavenger-Skirmisher Dominant Class ---------------- Mutant | -10/Materials Scavenger-Mutant | -10/Mines Mutant | -10/Subcaves Gunner | -8/Materials Gunner | -8/Storage Tank | -8/Recycling Tank | -8/Scraptown Tank | -6/Factory Skirmisher | -5/Factory Skirmisher | -5/Upper Caves Scavenger-Skirmisher | -5/Upper Caves Mutant | -5/Zhirov Tank | -4/Proximity Caves Scavenger-Gunner | -4/Factory Resources | -11 -10 -10 -10 -8 -8 -8 -8 -6 -5 -5 -5 -5 -4 -4 ----------- Run | Yrd Mat Min Sub Mat Sto Rec Scr Fac Fac Upp Upp Zhi Pro Fac Matter Collected 5314 | 181 57 72 298 1356 838 45 40 562 546 137 143 . 563 476 Remotely 69 | . 57 12 . . . . . . . . . . . . Salvage Created 7915 | . 50 93 426 1745 1378 . . 663 1127 213 393 . 635 1192 Parts 424 | . 6 6 29 103 77 . . 38 53 17 13 . 29 53 Haulers Intercepted 10 | . . . . 5 5 . . . . . . . . . Recyclers Shooed 5 | . . . . . . 1 . 1 . . . . . 3 Parts Field Recycled . | . . . . . . . . . . . . . . . Retrieved Matter . | . . . . . . . . . . . . . . . Parts Self-Destructed 68 | . . . 20 . . . . . . 17 10 . 21 . Prevented . | . . . . . . . . . . . . . . . Kills | -11 -10 -10 -10 -8 -8 -8 -8 -6 -5 -5 -5 -5 -4 -4 ------- Run | Yrd Mat Min Sub Mat Sto Rec Scr Fac Fac Upp Upp Zhi Pro Fac Combat Hostiles Destroyed 147 | . 3 2 15 30 18 . . 13 17 5 5 . 18 21 Guns 110 | . 3 2 15 28 18 . . 13 15 5 3 . 4 4 Cannons 5 | . . . . . . . . . . . . . 4 1 AOE 28 | . . . . 2 . . . . 1 . 2 . 8 15 Classes Destroyed 16 | . 1 2 2 7 2 . . 1 1 . . . . . Worker 11 | . . 1 . 2 1 . . 2 . . . . . 5 Builder 6 | . . . . . 2 . . . 1 . . . . 3 Hauler 10 | . . . . 5 5 . . . . . . . . . Recycler 3 | . . . . . 1 . . 1 . . . . . 1 Operator 2 | . . . . . . . . . 2 . . . . . Turret 1 | . . . 1 . . . . . . . . . . . Watcher 7 | . . . . 2 2 . . 1 1 . . . . 1 Swarmer 49 | . 3 1 8 4 . . . 8 4 3 4 . 10 4 Grunt 39 | . . . . 9 9 . . . 2 . . . 5 14 Duelist 5 | . . . . 2 1 . . 1 . . . . . 1 Sentry 22 | . . 1 . 9 7 . . . 4 . . . 1 . Specialist 2 | . . . . 2 . . . . . . . . . . Hunter 8 | . . . . 3 1 . . . . 2 . . 2 . Programmer 13 | . . . . . . . . 4 7 . 1 . . 1 Heavy 2 | . . . . 1 . . . . . . . . . 1 Subdweller 7 | . . . 7 . . . . . . . . . . . Best Kill Streak 8 | . 3 1 4 5 8 . . 5 5 3 2 . 5 8 Combat Bots Only 5 | . 3 1 4 4 5 . . 4 5 3 2 . 5 4 Max Kills in Single Turn 4 | . 2 1 1 3 2 . . 2 2 2 2 . 3 4 Gunslinging 1 | . 1 . . . . . . 1 . 1 . . . . Exploded 4 | . . . . 2 . . . . 1 . 2 . 3 4 Melee . | . . . . . . . . . . . . . . . Uniques/NPCs Destroyed . | . . . . . . . . . . . . . . . Combat | -11 -10 -10 -10 -8 -8 -8 -8 -6 -5 -5 -5 -5 -4 -4 -------- Run | Yrd Mat Min Sub Mat Sto Rec Scr Fac Fac Upp Upp Zhi Pro Fac Hostile Shots Fired 954 | . 20 13 119 152 62 4 . 75 99 29 24 . 136 221 Missed 277 | . 7 2 46 32 18 2 . 18 26 6 7 . 45 68 Damage Taken 11145 | . 100 130 812 1822 664 72 . 810 1573 296 279 . 1021 3566 Core 1853 | . 6 8 206 120 91 . . 57 159 12 18 . 104 1072 Absorbed by Shields 980 | . . . . . . . . 156 . 63 . . 591 170 Redirected to Shielding 38 | . . . . . . . . . . . . . 38 . Regen/Repaired (Parts) 60 | . . . . . . . . . 40 . 20 . . . Core Remaining (%) 67 | 100 . . 12 . . . 61 93 . . . . 70 . Volleys Fired 460 | . 6 5 66 109 62 1 . 47 56 10 24 . 38 36 Largest 3 | . 2 2 2 3 3 3 . 3 3 3 3 . 3 3 Hottest 207 | . 60 79 88 152 75 75 . 130 203 145 194 . 163 207 Shots Fired 1155 | . 12 10 123 312 185 3 . 137 159 22 35 . 90 67 Gun 1044 | . 12 10 123 309 185 3 . 135 137 22 16 . 51 41 Cannon 66 | . . . . . . . . 2 22 . . . 31 11 Launcher 26 | . . . . 3 . . . . . . 1 . 8 14 Special 19 | . . . . . . . . . . . 18 . . 1 Kinetic 845 | . 6 5 96 249 185 3 . 119 82 15 7 . 51 27 Thermal 273 | . 6 5 27 58 . . . 18 77 7 27 . 31 17 Explosive 26 | . . . . 3 . . . . . . 1 . 8 14 Electromagnetic 11 | . . . . 2 . . . . . . . . . 9 Robot Hit Streak 14 | . 3 6 10 13 14 10 . 14 10 4 9 . 13 8 Robot Miss Streak 10 | . 2 1 4 10 4 . . 4 4 2 2 . 6 3 Penetration Max 2 | . . . . . . . . . . . . . . 2 Secondary Targets 15 | . 2 . 3 1 4 . . 1 2 2 . . . . Max Gunslinging Chain 1 | . 1 . 1 1 1 . . 1 1 1 . . . . Shots Hit Robots 681 | . 7 7 60 191 123 3 . 76 93 10 19 . 54 38 Core Hits 322 | . 3 4 24 71 49 . . 28 39 5 15 . 29 55 Critical Kills 9 | . . . . 2 . . . . 2 2 . . . 3 Critical Parts Destroyed 7 | . . . 2 . . . . . 3 2 . . . . Critical Strikes 25 | . . . 3 8 . . . . 5 4 1 . . 4 Burn 8 | . . . 1 6 . . . . . . . . . 1 Meltdown 2 | . . . . . . . . . 1 . . . . 1 Destroy 14 | . . . 2 2 . . . . 4 4 . . . 2 Sever 1 | . . . . . . . . . . . 1 . . . Melee Attacks . | . . . . . . . . . . . . . . . Impact . | . . . . . . . . . . . . . . . Slashing . | . . . . . . . . . . . . . . . Piercing . | . . . . . . . . . . . . . . . Sneak Attacks . | . . . . . . . . . . . . . . . Combat Hostiles . | . . . . . . . . . . . . . . . Follow-up Attacks . | . . . . . . . . . . . . . . . Damage Inflicted 18355 | . 90 91 890 3722 2405 58 . 1605 2767 270 533 . 2347 3577 Guns 12578 | . 90 91 890 3578 2405 54 . 1601 2203 270 182 . 546 668 Cannons 1401 | . . . . . . . . . 393 . . . 744 264 Explosions 4139 | . . . . 144 . . . . 171 . 146 . 1057 2621 Melee . | . . . . . . . . . . . . . . . Ramming 13 | . . . . . . 4 . 4 . . . . . 5 Kinetic 9681 | . 47 58 630 2677 2405 54 . 1230 1237 149 97 . 546 551 Thermal 4385 | . 43 33 260 863 . . . 371 1359 121 290 . 744 301 Explosive 4139 | . . . . 144 . . . . 171 . 146 . 1057 2621 Electromagnetic 137 | . . . . 38 . . . . . . . . . 99 Impact . | . . . . . . . . . . . . . . . Slashing . | . . . . . . . . . . . . . . . Piercing . | . . . . . . . . . . . . . . . Highest Corruption 8 | . . . . . . . . . 7 7 8 8 8 5 Average Corruption 7 | . . . . . . . . . 6 7 7 8 8 3 Corruption Purged . | . . . . . . . . . . . . . . . Corruption Blocked . | . . . . . . . . . . . . . . . Effects 157 | . . . . . . . . . 40 27 23 19 42 6 Message Errors 36 | . . . . . . . . . 6 6 6 1 15 2 Matter Fused 39 | . . . . . . . . . 9 5 6 8 9 2 Heat Flow Errors 21 | . . . . . . . . . 7 4 5 1 4 . Energy Discharges 16 | . . . . . . . . . 7 3 1 2 3 . Parts Rejected 1 | . . . . . . . . . 1 . . . . . Parts Fused 1 | . . . . . . . . . . 1 . . . . Data Loss (minor) 17 | . . . . . . . . . 3 2 1 5 5 1 Data Loss (major) 7 | . . . . . . . . . . 2 2 1 1 1 Misfires 8 | . . . . . . . . . 2 2 1 . 3 . Alerts 8 | . . . . . . . . . 3 2 1 1 1 . Weapon Failures 3 | . . . . . . . . . 2 . . . 1 . Overload Shots . | . . . . . . . . . . . . . . . Overflow Damage 235 | . . . . 20 . . . . 74 . 18 . 22 101 Projectiles 58 | . . . . . . . . . 28 . 12 . . 18 Explosions 177 | . . . . 20 . . . . 46 . 6 . 22 83 Melee . | . . . . . . . . . . . . . . . Knockbacks . | . . . . . . . . . . . . . . . Impact . | . . . . . . . . . . . . . . . Kinetic . | . . . . . . . . . . . . . . . Secondary . | . . . . . . . . . . . . . . . Self-Inflicted Damage 360 | . . . . . . . . . 156 . . . . 204 Shots 7 | . . . . . . . . . 2 . . . . 5 Rammed 3 | . . . . . . 1 . 1 . . . . . 1 Targets Rammed 6 | . . . . . . 1 . 1 . . . . . 4 Kicked 3 | . . . . . . . . . . . . . . 3 Crushed . | . . . . . . . . . . . . . . . Highest Temperature 518 | . . 30 40 518 21 . . 135 455 324 251 137 185 90 Average Temperature 107 | . . 13 15 143 7 . . 59 122 97 102 74 48 29 Received Heat Transfer 1971 | . 6 27 324 558 216 42 . 18 108 . . . 79 593 Effects 13 | . . . . 9 . . . . 4 . . . . . Shutdowns 3 | . . . . 1 . . . . 2 . . . . . Energy Bleed 5 | . . . . 4 . . . . 1 . . . . . Interference 3 | . . . . 2 . . . . 1 . . . . . Matter Decay 1 | . . . . 1 . . . . . . . . . . Damage (minor) 1 | . . . . 1 . . . . . . . . . . Siege Activations . | . . . . . . . . . . . . . . . Robots Corrupted . | . . . . . . . . . . . . . . . Combat Hostiles . | . . . . . . . . . . . . . . . Parts Fried . | . . . . . . . . . . . . . . . Impact Corruptions . | . . . . . . . . . . . . . . . Robots Melted 4 | . . . . . . . . . 1 . . . 2 1 Combat Hostiles 4 | . . . . . . . . . 1 . . . 2 1 Parts Melted 23 | . 1 . 3 4 . . . . 8 . . . 6 1 Heat Transferred 7611 | . 100 75 606 2146 . . . 518 1832 185 592 . 1100 457 Parts Sabotaged . | . . . . . . . . . . . . . . . Parts Stolen . | . . . . . . . . . . . . . . . Parts Stripped . | . . . . . . . . . . . . . . . Power Chain Reactions . | . . . . . . . . . . . . . . . Alert | -11 -10 -10 -10 -8 -8 -8 -8 -6 -5 -5 -5 -5 -4 -4 ------- Run | Yrd Mat Min Sub Mat Sto Rec Scr Fac Fac Upp Upp Zhi Pro Fac Peak Influence 521 | . 71 235 . 297 509 210 . 188 426 . . . . 521 Initial 194 | . . 27 . 42 113 194 . . 44 . . . . 56 Average 139 | . 10 57 . 155 383 99 . 55 140 . . . . 240 Maximum Alert Level 2 | . . 1 . 1 2 1 . . 2 . . . . 2 Low Security (%) 73 | . 100 88 . 65 16 85 . 100 74 . . . . 42 Level 1 21 | . . 11 . 34 18 14 . . 20 . . . . 49 Level 2 5 | . . . . . 65 . . . 4 . . . . 7 Level 3 . | . . . . . . . . . . . . . . . Level 4 . | . . . . . . . . . . . . . . . Level 5 . | . . . . . . . . . . . . . . . High Security . | . . . . . . . . . . . . . . . Max Security . | . . . . . . . . . . . . . . . Squads Dispatched 20 | . . . . 3 2 . . 3 7 . . . . 5 Investigation 1 | . . . . . 1 . . . . . . . . . Extermination 7 | . . . . . . . . 3 3 . . . . 1 Reinforcement 8 | . . . . 3 1 . . . . . . . . 4 Assault . | . . . . . . . . . . . . . . . Garrison 4 | . . . . . . . . . 4 . . . . . Intercept . | . . . . . . . . . . . . . . . Searches Triggered . | . . . . . . . . . . . . . . . Construction Impeded 1 | . . . . . . . . . . . . . . 1 Haulers Reinforced . | . . . . . . . . . . . . . . . Active Scanning Responses . | . . . . . . . . . . . . . . . Cargo Convoy Interrupts . | . . . . . . . . . . . . . . . Stealth | -11 -10 -10 -10 -8 -8 -8 -8 -6 -5 -5 -5 -5 -4 -4 --------- Run | Yrd Mat Min Sub Mat Sto Rec Scr Fac Fac Upp Upp Zhi Pro Fac Distress Signals 13 | . . . . 3 3 . . 2 1 . . . . 4 Communications Jammed 3 | . . . . . . . . . . . . . . 3 Distress Signals 3 | . . . . . . . . . . . . . . 3 Times Spotted 226 | . 6 6 21 49 22 3 . 21 24 7 3 . 18 46 Peak Tracking Total 12 | . 4 3 3 7 4 2 . 5 4 5 4 . 5 12 Tactical Retreats 16 | . . 1 4 . . . . 2 . 2 1 . . 6 Traps | -11 -10 -10 -10 -8 -8 -8 -8 -6 -5 -5 -5 -5 -4 -4 ------- Run | Yrd Mat Min Sub Mat Sto Rec Scr Fac Fac Upp Upp Zhi Pro Fac Traps Triggered 4 | . . . . . . . . 4 . . . . . . Indirectly . | . . . . . . . . . . . . . . . Trap Hack Attempts . | . . . . . . . . . . . . . . . Triggered . | . . . . . . . . . . . . . . . Disarmed . | . . . . . . . . . . . . . . . Reprogrammed . | . . . . . . . . . . . . . . . Reused . | . . . . . . . . . . . . . . . Traps Extracted . | . . . . . . . . . . . . . . . Installed . | . . . . . . . . . . . . . . . Triggered 4 | . . . . . . . . . . . 4 . . . Machines | -11 -10 -10 -10 -8 -8 -8 -8 -6 -5 -5 -5 -5 -4 -4 ---------- Run | Yrd Mat Min Sub Mat Sto Rec Scr Fac Fac Upp Upp Zhi Pro Fac Machines Disabled 14 | . . . 1 2 1 . . . 8 . 1 . . 1 Max in Single Turn 2 | . . . 1 1 1 . . . 2 . 1 . . 1 Garrison Access 1 | . . . . 1 . . . . . . . . . . Machines Repaired . | . . . . . . . . . . . . . . . Machines Dismantled . | . . . . . . . . . . . . . . . Machines Sabotaged . | . . . . . . . . . . . . . . . Overloaded Fab Kills . | . . . . . . . . . . . . . . . Hacking | -11 -10 -10 -10 -8 -8 -8 -8 -6 -5 -5 -5 -5 -4 -4 --------- Run | Yrd Mat Min Sub Mat Sto Rec Scr Fac Fac Upp Upp Zhi Pro Fac Machines Accessed 47 | . . . . 6 4 6 8 5 9 . . 9 . . Terminals 26 | . . . . 5 4 6 . 4 7 . . . . . Fabricators 2 | . . . . . . . . . 2 . . . . . Repair Stations . | . . . . . . . . . . . . . . . Recycling Units 1 | . . . . . . . . 1 . . . . . . Scanalyzers . | . . . . . . . . . . . . . . . Garrison Access 1 | . . . . 1 . . . . . . . . . . Total Hacks 144 | . . . . 13 5 12 34 13 19 . . 48 . . Successful 109 | . . . . 8 1 4 34 5 9 . . 48 . . Failed 35 | . . . . 5 4 8 . 8 10 . . . . . Catastrophic 6 | . . . . . . 2 . 2 2 . . . . . Database Lockouts . | . . . . . . . . . . . . . . . Manual 21 | . . . . 1 4 . . 4 11 . 1 . . . Terminals 56 | . . . . 11 5 12 . 11 17 . . . . . Fabricators 2 | . . . . . . . . . 2 . . . . . Repair Stations . | . . . . . . . . . . . . . . . Recycling Units 2 | . . . . . . . . 2 . . . . . . Scanalyzers . | . . . . . . . . . . . . . . . Garrison Access 2 | . . . . 2 . . . . . . . . . . Terminal Hacks 103 | . . . . 7 1 4 34 3 6 . . 48 . . Record 63 | . . . . . . 1 26 . . . . 36 . . Part Schematic 5 | . . . . . . 1 . . . . . 4 . . Robot Analysis 12 | . . . . . . 1 7 . . . . 4 . . Prototype ID Bank 10 | . . . . 3 . 1 . 1 1 . . 4 . . Open Door 1 | . . . . . 1 . . . . . . . . . Open DSF 1 | . . . . . . . . . 1 . . . . . Branch Access Points 2 | . . . . 1 . . . . 1 . . . . . Alert Level 2 | . . . . . . . . 1 1 . . . . . Unreport Threat 4 | . . . . 2 . . . . 2 . . . . . Hauler Manifests 2 | . . . . 1 . . . 1 . . . . . . Derelict Proto ID Bank 1 | . . . . . . . 1 . . . . . . . Fabricator Hacks 2 | . . . . . . . . . 2 . . . . . Network Status 1 | . . . . . . . . . 1 . . . . . Build 1 | . . . . . . . . . 1 . . . . . Repair Station Hacks . | . . . . . . . . . . . . . . . Recycling Unit Hacks 1 | . . . . . . . . 1 . . . . . . Retrieve Matter 1 | . . . . . . . . 1 . . . . . . Scanalyzer . | . . . . . . . . . . . . . . . Garrison Access Hacks 1 | . . . . 1 . . . . . . . . . . Seal Access 1 | . . . . 1 . . . . . . . . . . Unauthorized Hacks 2 | . . . . . . . . 1 1 . . . . . Terminals 2 | . . . . . . . . 1 1 . . . . . Botnet 2 | . . . . . . . . 1 1 . . . . . Fabricators . | . . . . . . . . . . . . . . . Repair Stations . | . . . . . . . . . . . . . . . Recycling Units . | . . . . . . . . . . . . . . . Scanalyzers . | . . . . . . . . . . . . . . . Garrison Access . | . . . . . . . . . . . . . . . Data Cores Recovered 2 | . . . . . . . . . 2 . . . . . Used . | . . . . . . . . . . . . . . . Hacking Detections 27 | . . . . 5 4 6 . 5 7 . . . . . Full Trace Events 1 | . . . . . 1 . . . . . . . . . Feedback Events . | . . . . . . . . . . . . . . . Feedback Blocked . | . . . . . . . . . . . . . . . Robot Schematics Acquired . | . . . . . . . . . . . . . . . Robots Built . | . . . . . . . . . . . . . . . Authchips . | . . . . . . . . . . . . . . . Time . | . . . . . . . . . . . . . . . Total Robot Build Rating . | . . . . . . . . . . . . . . . Part Schematics Acquired 5 | . . . . . . 1 . . . . . 4 . . Parts Built 2 | . . . . . . . . . 2 . . . . . Authchips . | . . . . . . . . . . . . . . . Time 53 | . . . . . . . . . 53 . . . . . Total Part Build Rating 12 | . . . . . . . . . 12 . . . . . Parts Repaired . | . . . . . . . . . . . . . . . Time . | . . . . . . . . . . . . . . . Parts Recycled . | . . . . . . . . . . . . . . . Recycled Matter . | . . . . . . . . . . . . . . . Retrieved Matter 135 | . . . . . . . . 135 . . . . . . Retrieved Components . | . . . . . . . . . . . . . . . Parts Scanalyzed . | . . . . . . . . . . . . . . . Part Schematics Acquired . | . . . . . . . . . . . . . . . Parts Damaged . | . . . . . . . . . . . . . . . Bothacking | -11 -10 -10 -10 -8 -8 -8 -8 -6 -5 -5 -5 -5 -4 -4 ------------ Run | Yrd Mat Min Sub Mat Sto Rec Scr Fac Fac Upp Upp Zhi Pro Fac Used RIF Installer . | . . . . . . . . . . . . . . . Robots Hacked . | . . . . . . . . . . . . . . . Non-combat . | . . . . . . . . . . . . . . . Combat . | . . . . . . . . . . . . . . . Robot Hacks Applied . | . . . . . . . . . . . . . . . Relay Couplers Released . | . . . . . . . . . . . . . . . Fabnet Peak Effective % . | . . . . . . . . . . . . . . . Robots Rewired . | . . . . . . . . . . . . . . . Allies Hacked . | . . . . . . . . . . . . . . . Hacks Repelled . | . . . . . . . . . . . . . . . Allies | -11 -10 -10 -10 -8 -8 -8 -8 -6 -5 -5 -5 -5 -4 -4 -------- Run | Yrd Mat Min Sub Mat Sto Rec Scr Fac Fac Upp Upp Zhi Pro Fac Total Allies 2 | . . 2 . . . . . . . . . . . . Largest Group 2 | . . 2 2 . . . . . . . . . . . Highest-Rated Group 45 | . . 45 45 . . . . . . . . . . . Highest-Rated Ally 31 | . . 31 31 . . . . . . . . . . . Total Orders . | . . . . . . . . . . . . . . . Ally Attacks 30 | . . 23 7 . . . . . . . . . . . Total Damage 493 | . . 389 104 . . . . . . . . . . . Kills 6 | . . 5 1 . . . . . . . . . . . Allies Corrupted . | . . . . . . . . . . . . . . . Allies Melted 1 | . . . 1 . . . . . . . . . . . Intel | -11 -10 -10 -10 -8 -8 -8 -8 -6 -5 -5 -5 -5 -4 -4 ------- Run | Yrd Mat Min Sub Mat Sto Rec Scr Fac Fac Upp Upp Zhi Pro Fac Robot Analysis Total 12 | . . . . . . 1 7 . . . . 4 . . Derelict Logs Recovered 10 | . . 2 2 . . . 2 . . 1 1 . 2 . Drone Launches . | . . . . . . . . . . . . . . . Drone Recoveries . | . . . . . . . . . . . . . . . Exploration | -11 -10 -10 -10 -8 -8 -8 -8 -6 -5 -5 -5 -5 -4 -4 ------------- Run | Yrd Mat Min Sub Mat Sto Rec Scr Fac Fac Upp Upp Zhi Pro Fac Turns Passed 19444 | . 149 1156 2281 3041 673 901 3228 1691 2100 921 729 475 1391 708 Spaces Moved 8383 | 1 83 577 1016 1478 275 495 1446 617 770 280 248 187 445 465 Core 223 | . . . . . . . . . . . . . . 223 Treads 6314 | . . . 145 1478 275 495 1446 617 770 280 248 187 373 . Legs 1819 | 1 83 577 871 . . . . . . . . . 72 215 Wheels . | . . . . . . . . . . . . . . . Hover 27 | . . . . . . . . . . . . . . 27 Flight . | . . . . . . . . . . . . . . . Fastest Speed 50 | 120 120 190 190 160 161 161 161 241 163 222 243 243 243 50 Average Speed 197 | 120 156 190 198 167 168 161 207 241 224 241 243 243 247 109 Slowest Speed 1200 | 120 190 190 260 240 170 161 241 241 255 243 243 243 410 1200 Overloaded Moves . | . . . . . . . . . . . . . . . Propulsion Burnouts . | . . . . . . . . . . . . . . . Robots Hopped . | . . . . . . . . . . . . . . . Cave-ins Triggered . | . . . . . . . . . . . . . . . Teleports 1 | . . . . . . . . . . . . . . 1 Exploration Rate (%) 52 | 2 22 97 58 91 51 96 90 17 18 46 49 62 74 19 Regions Visited 14 Branch Regions 9 Pre-discovered Areas 8 | . . 1 1 . . . 1 . . . 1 3 1 . Known Exits Taken 3 | . . . . 1 1 . . . 1 . . . . . Unknown Exits Taken 11 | 1 1 1 1 . . 1 1 1 . 1 1 1 1 . Scrap Searched 10 | . . 1 . . . . 5 . . 1 1 . 2 . Spaces Dug 14 | . . . . 8 . . . 1 3 1 . . 1 . Terrain Destroyed 339 | . . . . 25 . . . 1 88 6 23 . 81 115 Melee . | . . . . . . . . . . . . . . . Projectile 68 | . . . . . . . . 1 26 6 4 . 26 5 AOE 271 | . . . . 25 . . . . 62 . 19 . 55 110 Terrain Rammed . | . . . . . . . . . . . . . . . Walls Destroyed . | . . . . . . . . . . . . . . . Machines Disabled . | . . . . . . . . . . . . . . . Actions | -11 -10 -10 -10 -8 -8 -8 -8 -6 -5 -5 -5 -5 -4 -4 --------- Run | Yrd Mat Min Sub Mat Sto Rec Scr Fac Fac Upp Upp Zhi Pro Fac Total 10576 | . 90 627 1164 1864 420 598 1674 766 1070 513 327 213 663 587 Wait 1393 | . . 35 66 188 65 101 209 59 206 221 42 2 158 41 Move 8369 | . 82 576 1015 1477 274 494 1445 616 769 279 247 186 444 465 Hop . | . . . . . . . . . . . . . . . Pick Up 70 | . . 1 9 20 1 . 9 9 10 . . 4 5 2 Fast Attach 51 | . 1 3 1 13 8 . 1 6 4 . 2 4 2 6 Attach 49 | . . 1 3 4 . 1 . 3 10 . 1 3 6 17 Detach 12 | . . 1 . . . . . 1 3 . 1 4 1 1 Swap 68 | . 1 2 2 19 1 . 3 5 6 3 4 1 8 13 Drop 88 | . . 3 2 34 9 . 7 13 6 . 2 9 1 2 Fire 460 | . 6 5 66 109 62 1 . 47 56 10 24 . 38 36 Melee . | . . . . . . . . . . . . . . . Ram 1 | . . . . . . . . . . . . . . 1 Kick 3 | . . . . . . . . . . . . . . 3 Crush 2 | . . . . . . 1 . 1 . . . . . . Escape Stasis 6 | . . . . . . . . 6 . . . . . . Rewire 4 | . . . . . . . . . . . 4 . . . Trap . | . . . . . . . . . . . . . . . Miscellaneous . | . . . . . . . . . . . . . . . Route ------- -11/Scrapyard -10/Materials -10/Mines (discovered 4 exits: [*Mat x2] / [*Exi] / [*Sub]) -10/Subcaves (discovered 3 exits: *Mat x2 / *Rec) -8/Materials (discovered 4 exits: [*Fac x3] / *Sto) -8/Storage -8/Recycling (discovered 2 exits: *Fac / *Scr) -8/Scraptown (discovered 2 exits: *Fac x2) -6/Factory -5/Factory (discovered 3 exits: *Fac / *Upp x2) -5/Upper Caves -5/Upper Caves -5/Zhirov -4/Proximity Caves -4/Factory History --------- Turn | Location | Event 1 | -11/Scrapyard | Discovered new exit (range 0) 1 | -11/Scrapyard | Entered Materials 111 | -10/Materials | Discovered new exit (range 9) 150 | -10/Materials | Entered Mines 221 | -10/Mines | Discovered new exit (range 7) 300 | -10/Mines | Build established: Mutant 578 | -10/Mines | Discovered new exit (range 5) 687 | -10/Mines | Build established: Scavenger-Mutant 856 | -10/Mines | Learned location of Zion (-7) 915 | -10/Mines | Found a damaged Exp. Sensor Array with a note attached 919 | -10/Mines | Found Prototype Device 919 | -10/Mines | Identified Exp. Sensor Array 975 | -10/Mines | Deemed a non-threat by the Exiles lab entrance 975 | -10/Mines | Discovered new exit (range 5) 1284 | -10/Mines | Discovered new exit (range 9) 1306 | -10/Mines | Entered Subcaves 1306 | -10/Subcaves | Accompanied by 2 allies 1307 | -10/Subcaves | Identified exit to Recycling 1311 | -10/Subcaves | Led the pair of lost Derelicts to an unsafe place 2054 | -10/Subcaves | Shifting Twisted Machinery released Mak. Thermal Plating 2056 | -10/Subcaves | Shifting Twisted Machinery released Barrage Gun 2439 | -10/Subcaves | Build established: Mutant 3125 | -10/Subcaves | Core integrity fell below 50% 3156 | -10/Subcaves | Discovered new exit (range 14) 3277 | -10/Subcaves | Shifting Twisted Machinery released Piercing Trap 3396 | -10/Subcaves | Discovered new exit (range 10) 3465 | -10/Subcaves | Shifting Twisted Machinery released Riot Gun 3475 | -10/Subcaves | A swath of the cavern ceiling suddenly collapsed 3530 | -10/Subcaves | Core integrity fell below 20% 3587 | -10/Subcaves | Entered Materials 3587 | -8/Materials | Evolved 4 slots: Propulsion x1, Utility x2, Weapon x1 3807 | -8/Materials | Discovered new exit (range 15) 3934 | -8/Materials | Discovered new exit (range 9) 4311 | -8/Materials | Build established: Tank 4544 | -8/Materials | Discovered new exit (range 8) 4833 | -8/Materials | Build established: Gunner 5363 | -8/Materials | Discovered new exit (range 5) 6533 | -8/Materials | Identified exit to Storage 6628 | -8/Materials | Entered Storage 7195 | -8/Storage | Met 01-MTF 7301 | -8/Storage | Entered Recycling 7301 | -8/Recycling | Accompanied by 1 ally (01-MTF) 7453 | -8/Recycling | Build established: Tank 7923 | -8/Recycling | Discovered new exit (range 16) 8153 | -8/Recycling | Scanned before Scraplab entrance 8186 | -8/Recycling | Entered Scraplab 8199 | -8/Recycling | Discovered new exit (range 2) 8202 | -8/Recycling | Entered Scraptown 8542 | -8/Scraptown | Discovered new exit (range 5) 8605 | -8/Scraptown | Scanned Subdweller tech in exchange for log data 8610 | -8/Scraptown | Learned Factory garrison access intel 8664 | -8/Scraptown | Heard Great Nut preacher, LISTEN AND RECITE! 8677 | -8/Scraptown | Visited Junk Repository 8700 | -8/Scraptown | Visited SPCMW 8814 | -8/Scraptown | Visited Science Testing Area 8851 | -8/Scraptown | Visited Symbiants 9144 | -8/Scraptown | Visited UFD Registry 9144 | -8/Scraptown | Registered with UFD as "Dualspawn" 9167 | -8/Scraptown | Visited Supply Room 9240 | -8/Scraptown | Visited Shadow of the Wyrm 9279 | -8/Scraptown | Visited Awakened 9460 | -8/Scraptown | Visited Derelict Rescue Squad 9474 | -8/Scraptown | Found DRS Beacon 9572 | -8/Scraptown | Visited Modified Component R&D 9706 | -8/Scraptown | Visited Science Guys 9795 | -8/Scraptown | Visited Abandonware Association 9834 | -8/Scraptown | Learned abandonware demo "TRNCOAT.EXE" 9834 | -8/Scraptown | Learned abandonware demo "MELTYB.EXE" 9959 | -8/Scraptown | Visited Cartography Club 10007 | -8/Scraptown | Found Surveybot 17 Chip 10126 | -8/Scraptown | Visited Scrapoid Pod Storage 10177 | -8/Scraptown | Visited Scrap Suit Storage 10187 | -8/Scraptown | Found Scrap Suit 10230 | -8/Scraptown | Found Scrap Suit 10275 | -8/Scraptown | Visited Curators Association 11005 | -8/Scraptown | Visited Botcube Research 11027 | -8/Scraptown | Found Botcube 11081 | -8/Scraptown | Visited Analyses Database 11418 | -8/Scraptown | Discovered new exit (range 5) 11430 | -8/Scraptown | Entered Factory 11430 | -6/Factory | Evolved 4 slots: Power x1, Utility x3 11431 | -6/Factory | Loaded intel: 4 garrison access locations 12405 | -6/Factory | Discovered new exit (range 14) 13121 | -6/Factory | Entered another Factory area 13121 | -5/Factory | Evolved 2 slots: Propulsion x1, Utility x1 13150 | -5/Factory | Discovered new exit (range 16) 13417 | -5/Factory | Build established: Skirmisher 13505 | -5/Factory | Fabricated Imp. Recalibrator? 13970 | -5/Factory | Discovered new exit (range 15) 14276 | -5/Factory | Lost 4 parts (1p2n1w) 14546 | -5/Factory | Build established: Tank 14597 | -5/Factory | Garrison activated, responded to threat 14739 | -5/Factory | Garrison activated, responded to threat 14814 | -5/Factory | Identified exit to Upper Caves 15221 | -5/Factory | Entered Upper Caves 15626 | -5/Upper Caves | Build established: Skirmisher 16091 | -5/Upper Caves | Discovered new exit (range 15) 16142 | -5/Upper Caves | Entered another Upper Caves area 16207 | -5/Upper Caves | Acquired the password to a Derelict Tinkerer's latest research 16224 | -5/Upper Caves | Found Prototype Special Weapon 16224 | -5/Upper Caves | Identified Molecular Deconstructor 16433 | -5/Upper Caves | Caught by Unaware searching for contraband prototypes 16614 | -5/Upper Caves | Build established: Scavenger-Skirmisher 16836 | -5/Upper Caves | Discovered new exit (range 15) 16871 | -5/Upper Caves | Entered Zhirov 16871 | -5/Zhirov | Discovered new exit (range 3) 16924 | -5/Zhirov | Met Zhirov 16985 | -5/Zhirov | Learned location of Quarantine (-3) 16985 | -5/Zhirov | Learned location of Testing (-2) 16985 | -5/Zhirov | Learned location of Command (-1) 17034 | -5/Zhirov | Zhirov requested help retrieving the SGEMP Prototype 17077 | -5/Zhirov | Found Alien Artifact 17077 | -5/Zhirov | Identified Integrated Dissipator 17077 | -5/Zhirov | Installed Integrated Dissipator, increased core heat dissipation (+20) 17156 | -5/Zhirov | Found Alien Artifact 17191 | -5/Zhirov | Build established: Mutant 17346 | -5/Zhirov | Entered Proximity Caves 17348 | -4/Proximity Caves | Attracted the attention of an 0b10 checkpoint 17661 | -4/Proximity Caves | Learned location of Armory (-3) 17890 | -4/Proximity Caves | Build established: Tank 18108 | -4/Proximity Caves | Lost 3 parts (2n1u) 18472 | -4/Proximity Caves | Build established: Skirmisher 18569 | -4/Proximity Caves | Spotted B-86 Titan 18692 | -4/Proximity Caves | Discovered new exit (range 15) 18737 | -4/Proximity Caves | Entered Factory 18737 | -4/Factory | Evolved 2 slots: Utility x2 19048 | -4/Factory | Build established: Scavenger-Gunner 19098 | -4/Factory | Identified Transdimensional Reconstructor 19098 | -4/Factory | Warped through subspace 19132 | -4/Factory | Lost 3 parts (2u1w) 19290 | -4/Factory | Core integrity fell below 50% 19320 | -4/Factory | Core integrity fell below 20% 19348 | -4/Factory | Lost 27 parts (4p6n6u11w) 19372 | -4/Factory | Spotted B-86 Titan 19445 | -4/Factory | Spotted B-86 Titan 19445 | -4/Factory | Destroyed by B-86 Titan with Matter Neutralizer Last Messages --------------- 19315_ Penetrated by Slug. 19315_ Slug penetrates A-15 Conveyor. 19315_ A-15 Conveyor destroyed. 19315_ Penetrated by Slug. 19315_ Flexi-carbon Leg destroyed. 19315_ Slug penetrates Wall. 19317_ Adv. Targeting Computer destroyed. 19317_ K-01 Serf collects debris. 19322_ %LGFZ%M,EYR0XBGR|SJ SECXY5EN &2OKZ7XE&F3 19346_ QB5BB&FGLY1:E0F0SJK,TAJQV6RNJ|L 19365_ System corrupted: Matter fused (-10). 19379_ O-24 Administrator sends out distress signal. 19379_ O-24 Administrator: "IFF HANDSHAKE FAILED. SECURING TERMINAL." 19385_ ALERT: Hostiles spotted, dispatching reinforcements to Terminal F014. 19398_ K-01 Serf cleans the Terminal. 19426_ Acquired Imp. Antigrav System. 19436_ Acquired Adv. Salvage Targeting Computer. Map ----- +----------------------------------------------------+ | | | | | ??????????????????????????????????###### | | ??????????????????????????????????# # | | ??????????????????????????????????# ! # | | ??????????????????????????????????# # | | ???????????????????????############ # | | ???????????????????????+ + # | | ???????????????????????# # # | | ?????????????###+####### # # | | ?????????????# + # | | ?????????????# ##### ### # # | | ?????????????# ##+#####+############ | | ?????????????+ ## #?????? | | ?????????????# ## #?????? | | ?????????????# ## " " " #?????? | | ???########### ##* !! " " " #?????? | | ???# # !! " " " #?????? | | ???# # ! !! " " " #?????? | | ? # """ """ """ # " " " #?????? | | ?? + """ """ """ # ] " " " #?????? | | ???# """ """ """ + ] " " " #?????? | | ???# "" "" "" # " " " #?????? | | ???# "" "" "" # " " " #?????? | | ???# # #?????? | | ???# ! ! #####@########?????? | | ???+ ??????????? | | ???#######+## B?????????? | | ????????????# """ """ BB#???????? | | ????????????# """ """ ###???????? | | ????????????# """ """k """#?????????? | | ????????????# "" "" Y"#?????????? | | ????????????# "" "" ! """#?????????? | | ????????????# #?????????? | | ???########## ??????????? | | ???# ??????????? | | "??# ??????????? | | " # """ ???????????? | | " + "T" R ???????????? | | # " " ????????????? | | " + ????????????? | | " # """"" """"" ????????????? | | "??# """"" """"" ######?????????????? | | ???# """ """ #??????????????????? | | ???# #??????????????????? | | ???# """"?? #??????????????????? | | ???# """"? ? #??????????????????? | | ???#=! """ "??????????????????? | | ?###!! ???????????????????? | | ?#"" """"" ????????????????????? | +----------------------------------------------------+ Best States ------------- Heat Dissipation 85 Energy Generation 37 Energy Capacity 875 Matter Stores 300 Matter Capacity 300 Sight Range 16 Terrain Scan Range 16 Terrain Scan Density 1210 Jamming Range 12 Armor Coverage 600 Power Shielding 90 Weapon Cycling 20 Evasion (%) 63 Targeting Accuracy 8 Target Analysis 8 Recoil Reduction 4 Kinecelleration 40 Salvage Targeting 3 Offensive Hacking 10 Item Schematics ----------------- Reaction Control System | -8/Recycling | Hacked Assault Drone Bay | -5/Zhirov | Free Exp. Heat Sink | -5/Zhirov | Free Exp. Optical Array | -5/Zhirov | Free Imp. Arc Thrower | -5/Zhirov | Free Robot Schematics ------------------ None Fabricated ------------ Imp. Recalibrator | x2 | -5/Factory | Preloaded Alien Tech Used ----------------- Integrated Dissipator Transdimensional Reconstructor Achievements -------------- None Challenges ------------ None Game ------ Seed ZhirovInsulatedPurifier Manual? 0 Play Time 02:01:27 Cumulative 80.8 hours Start 2024.08.08 @ 11:13:59 End 2024.08.08 @ 13:48:47 Sessions 1 Manual Loads 0 Difficulty Rogue Special Mode None Game No. 95 Rogue 95 Adventurer 0 Explorer 0 Win Type - Total 0 Types 0/0/0/0/0/0/0/0/0 Lore% 41 Gallery% 53 Achievement% 51 Wizard Run 0 Options --------- Layout 1 ASCII 0 Keyboard 0 Movement Mouse Keybinds 0 Fullscreen 1 Font 32/SmallcapsGlow Map View 50x35 Zoom Use 0% Tactical HUD 1 Map Filters NONE Filters NONE Steam 1 RUN: 6e2fe8ed-362d-4468-a143-e56d46e11cf6